[Event "Early-Titled-Tuesday-Blitz-January-16-2024"]
[Site "Chess.com"]
[Date "2024.01.16"]
[Round "8"]
[White "Grossboss19"]
[Black "vanyakuba"]
[Result "1-0"]
[WhiteElo "2542"]
[BlackElo "2325"]
[TimeControl "180+1"]
[EndTime "9:33:37 PST"]
[Termination "Grossboss19 won by resignation"]

1. e4 {[%clk 0:02:52.2]} 1... d5 {[%clk 0:02:59.8]} 2. e5 {[%clk 0:02:51.2]}
2... c5 {[%clk 0:02:59.9]} 3. c3 {[%clk 0:02:48.7]} 3... Nc6 {[%clk 0:02:59.9]}
4. d4 {[%clk 0:02:48.5]} 4... Bf5 {[%clk 0:02:58.7]} 5. g4 {[%clk 0:02:44.6]}
5... Be4 {[%clk 0:02:48.9]} 6. f3 {[%clk 0:02:43.1]} 6... Bg6 {[%clk 0:02:48.3]}
7. Ne2 {[%clk 0:02:40.5]} 7... e6 {[%clk 0:02:37.7]} 8. h4 {[%clk 0:02:38.8]}
8... h5 {[%clk 0:02:16.7]} 9. Nf4 {[%clk 0:02:24.1]} 9... Bxb1 {[%clk
0:02:15.4]} 10. Rxb1 {[%clk 0:02:22]} 10... hxg4 {[%clk 0:02:15.8]} 11. fxg4
{[%clk 0:02:17.4]} 11... Rxh4 {[%clk 0:02:15]} 12. Rg1 {[%clk 0:02:16.9]} 12...
Qb6 {[%clk 0:02:03.6]} 13. Be3 {[%clk 0:02:10.6]} 13... cxd4 {[%clk 0:01:46.6]}
14. cxd4 {[%clk 0:02:08.8]} 14... Nxe5 {[%clk 0:01:24.7]} 15. Ng2 {[%clk
0:01:36.7]} 15... Bb4+ {[%clk 0:01:15.3]} 16. Ke2 {[%clk 0:01:32.7]} 16... Qa6+
{[%clk 0:00:46.3]} 17. Kf2 {[%clk 0:01:28.9]} 17... Nxg4+ {[%clk 0:00:45.3]} 18.
Kg3 {[%clk 0:01:25.7]} 18... Nxe3 {[%clk 0:00:21.5]} 19. Bxa6 {[%clk 0:01:05.4]}
19... Rg4+ {[%clk 0:00:08.9]} 20. Qxg4 {[%clk 0:00:57.3]} 20... Nxg4 {[%clk
0:00:09.1]} 21. Bb5+ {[%clk 0:00:57.8]} 21... Ke7 {[%clk 0:00:09]} 22. Kxg4
{[%clk 0:00:58.7]} 22... Nf6+ {[%clk 0:00:09.4]} 23. Kf3 {[%clk 0:00:58.7]}
23... Ne4 {[%clk 0:00:09.1]} 24. Rbc1 {[%clk 0:00:55.7]} 24... a6 {[%clk
0:00:08.6]} 25. Bd3 {[%clk 0:00:54.9]} 25... Nd6 {[%clk 0:00:08.4]} 26. a3
{[%clk 0:00:54.7]} 26... Ba5 {[%clk 0:00:08.3]} 27. Nf4 {[%clk 0:00:51]} 27...
Bb6 {[%clk 0:00:07.6]} 28. Ne2 {[%clk 0:00:50.9]} 28... g6 {[%clk 0:00:07.4]}
29. Rh1 {[%clk 0:00:50.3]} 29... Kf6 {[%clk 0:00:07.3]} 30. Ke3 {[%clk
0:00:48.7]} 30... e5 {[%clk 0:00:06.6]} 31. Rcf1+ {[%clk 0:00:44.5]} 31... Ke7
{[%clk 0:00:05.7]} 32. Rh7 {[%clk 0:00:32.2]} 32... e4 {[%clk 0:00:05.9]} 33.
Bb1 {[%clk 0:00:32.3]} 33... Nf5+ {[%clk 0:00:05.7]} 34. Kf4 {[%clk 0:00:28.2]}
34... Bc7+ {[%clk 0:00:05.4]} 35. Kg5 {[%clk 0:00:26]} 35... Bd8 {[%clk
0:00:04.7]} 36. Rc1 {[%clk 0:00:15.7]} 36... Kd6+ {[%clk 0:00:05.1]} 37. Kf4
{[%clk 0:00:15.6]} 37... Ke6 {[%clk 0:00:05.1]} 38. Ng3 {[%clk 0:00:09.4]} 38...
Be7 {[%clk 0:00:04]} 39. Nxf5 {[%clk 0:00:09.1]} 39... gxf5 {[%clk 0:00:04.7]}
40. Rh6+ {[%clk 0:00:09.5]} 40... f6 {[%clk 0:00:05.2]} 41. Ke3 {[%clk
0:00:08.4]} 41... Rg8 {[%clk 0:00:05.1]} 42. Ba2 {[%clk 0:00:08]} 42... Bd6
{[%clk 0:00:05.1]} 43. Rf1 {[%clk 0:00:06.9]} 43... Rg3+ {[%clk 0:00:04.5]} 44.
Ke2 {[%clk 0:00:06.8]} 44... Rg2+ {[%clk 0:00:03.8]} 45. Rf2 {[%clk 0:00:07]}
45... Rg3 {[%clk 0:00:03.9]} 46. Rh5 {[%clk 0:00:06.9]} 46... Rg5 {[%clk
0:00:02.2]} 47. Rxg5 {[%clk 0:00:04.1]} 47... fxg5 {[%clk 0:00:03.1]} 48. Rh2
{[%clk 0:00:03.8]} 48... f4 {[%clk 0:00:03]} 49. Rh6+ {[%clk 0:00:03.7]} 49...
Ke7 {[%clk 0:00:03.5]} 50. Bxd5 {[%clk 0:00:04.2]} 50... f3+ {[%clk 0:00:03.5]}
51. Ke3 {[%clk 0:00:04.5]} 51... Bf4+ {[%clk 0:00:03.3]} 52. Kxe4 {[%clk
0:00:05.1]} 52... f2 {[%clk 0:00:04.2]} 53. Bc4 {[%clk 0:00:05.7]} 53... Bd2
{[%clk 0:00:03.8]} 54. Bf1 {[%clk 0:00:06]} 54... Be1 {[%clk 0:00:04.7]} 55.
Rh7+ {[%clk 0:00:06.3]} 55... Kf6 {[%clk 0:00:05.2]} 56. d5 {[%clk 0:00:06.8]}
56... b5 {[%clk 0:00:04]} 57. Rb7 {[%clk 0:00:07]} 57... Ba5 {[%clk 0:00:04.9]}
58. d6 {[%clk 0:00:07.1]} 58... Ke6 {[%clk 0:00:05]} 59. d7 {[%clk 0:00:07.6]}
59... Ke7 {[%clk 0:00:05.7]} 60. Kf3 {[%clk 0:00:08]} 60... Be1 {[%clk 0:00:05]}
61. Kg4 {[%clk 0:00:08.5]} 61... Kd8 {[%clk 0:00:05.2]} 62. Kxg5 {[%clk
0:00:08.4]} 1-0

[Event "Early-Titled-Tuesday-Blitz-January-16-2024"]
[Site "Chess.com"]
[Date "2024.01.16"]
[Round "8"]
[White "Kirill_Klukin"]
[Black "Goryachkina"]
[Result "1/2-1/2"]
[WhiteElo "2860"]
[BlackElo "2682"]
[TimeControl "180+1"]
[EndTime "9:33:41 PST"]
[Termination "Game drawn - insufficient material"]

1. Nf3 {[%clk 0:03:00.9]} 1... d5 {[%clk 0:02:59.7]} 2. c4 {[%clk 0:03:01]} 2...
e6 {[%clk 0:02:59.4]} 3. cxd5 {[%clk 0:02:55.8]} 3... exd5 {[%clk 0:02:59.3]} 4.
d4 {[%clk 0:02:56.7]} 4... Nf6 {[%clk 0:02:57.9]} 5. Nc3 {[%clk 0:02:56.7]} 5...
c6 {[%clk 0:02:57.5]} 6. Bg5 {[%clk 0:02:57.2]} 6... Be7 {[%clk 0:02:55]} 7. e3
{[%clk 0:02:57.4]} 7... Bf5 {[%clk 0:02:54]} 8. Bd3 {[%clk 0:02:44.5]} 8... Bxd3
{[%clk 0:02:53.6]} 9. Qxd3 {[%clk 0:02:45.4]} 9... Nbd7 {[%clk 0:02:53.4]} 10.
O-O {[%clk 0:02:45.9]} 10... O-O {[%clk 0:02:53.2]} 11. Rab1 {[%clk 0:02:45.7]}
11... a5 {[%clk 0:02:51.6]} 12. b3 {[%clk 0:02:42.5]} 12... Re8 {[%clk
0:02:50.4]} 13. h3 {[%clk 0:02:42.3]} 13... Ne4 {[%clk 0:02:47.3]} 14. Bf4
{[%clk 0:02:42.4]} 14... Bd6 {[%clk 0:02:34.8]} 15. Bxd6 {[%clk 0:02:28]} 15...
Nxd6 {[%clk 0:02:35.7]} 16. Nd2 {[%clk 0:02:25.5]} 16... Qg5 {[%clk 0:02:30.9]}
17. Rbe1 {[%clk 0:02:18.6]} 17... h6 {[%clk 0:02:28.2]} 18. f3 {[%clk
0:02:04.4]} 18... Rad8 {[%clk 0:02:17.1]} 19. e4 {[%clk 0:01:51.7]} 19... dxe4
{[%clk 0:02:16]} 20. fxe4 {[%clk 0:01:51.9]} 20... c5 {[%clk 0:02:10.4]} 21. Nf3
{[%clk 0:01:41.5]} 21... Qg6 {[%clk 0:01:59.9]} 22. d5 {[%clk 0:01:16.7]} 22...
Ne5 {[%clk 0:01:57.3]} 23. Qe3 {[%clk 0:01:16.7]} 23... Nxf3+ {[%clk 0:01:52.6]}
24. Rxf3 {[%clk 0:00:45.2]} 24... Re5 {[%clk 0:01:33]} 25. Qxc5 {[%clk
0:00:42.7]} 25... Nxe4 {[%clk 0:01:20.7]} 26. Qc7 {[%clk 0:00:41.5]} 26... Rde8
{[%clk 0:01:10.8]} 27. Rfe3 {[%clk 0:00:41]} 27... f5 {[%clk 0:00:43.9]} 28. d6
{[%clk 0:00:29.4]} 28... Rc5 {[%clk 0:00:24.8]} 29. Qxb7 {[%clk 0:00:16.3]}
29... Nxd6 {[%clk 0:00:17.4]} 30. Rxe8+ {[%clk 0:00:12.9]} 30... Nxe8 {[%clk
0:00:17.8]} 31. Qa8 {[%clk 0:00:09.1]} 31... Kf8 {[%clk 0:00:06.1]} 32. Ne2
{[%clk 0:00:06.7]} 32... Re5 {[%clk 0:00:05.3]} 33. Qf3 {[%clk 0:00:04.6]} 33...
Qe6 {[%clk 0:00:05]} 34. Kf1 {[%clk 0:00:04.9]} 34... Re3 {[%clk 0:00:05.2]} 35.
Qf2 {[%clk 0:00:05]} 35... Nf6 {[%clk 0:00:05]} 36. Nd4 {[%clk 0:00:05.2]} 36...
Rxe1+ {[%clk 0:00:05.1]} 37. Qxe1 {[%clk 0:00:06.1]} 37... Qxe1+ {[%clk
0:00:05.4]} 38. Kxe1 {[%clk 0:00:06.4]} 38... g6 {[%clk 0:00:05.9]} 39. Nc6
{[%clk 0:00:06.9]} 39... Nd5 {[%clk 0:00:05.7]} 40. Nxa5 {[%clk 0:00:07.1]}
40... Nf4 {[%clk 0:00:04.2]} 41. Kf2 {[%clk 0:00:05.1]} 41... Ke7 {[%clk
0:00:04.7]} 42. Nc4 {[%clk 0:00:04.8]} 42... Ke6 {[%clk 0:00:04.7]} 43. a4
{[%clk 0:00:03.9]} 43... Nd3+ {[%clk 0:00:04.8]} 44. Ke3 {[%clk 0:00:04.1]}
44... Nc5 {[%clk 0:00:05.3]} 45. Nd2 {[%clk 0:00:03.6]} 45... Kd5 {[%clk
0:00:05.2]} 46. a5 {[%clk 0:00:03.3]} 46... Kc6 {[%clk 0:00:05.3]} 47. b4 {[%clk
0:00:03.8]} 47... Nd7 {[%clk 0:00:04.7]} 48. Kd4 {[%clk 0:00:04.1]} 48... Kb5
{[%clk 0:00:05]} 49. Kc3 {[%clk 0:00:04.6]} 49... Nf6 {[%clk 0:00:05.4]} 50. Nf3
{[%clk 0:00:04.1]} 50... Nd5+ {[%clk 0:00:05.4]} 51. Kd4 {[%clk 0:00:04.4]}
51... Nxb4 {[%clk 0:00:05.8]} 52. Ke5 {[%clk 0:00:04.9]} 52... Nd3+ {[%clk
0:00:05.8]} 53. Kf6 {[%clk 0:00:05.2]} 53... Nf4 {[%clk 0:00:06.2]} 54. g3
{[%clk 0:00:01.9]} 54... Nxh3 {[%clk 0:00:05.9]} 55. Kxg6 {[%clk 0:00:02.5]}
55... f4 {[%clk 0:00:06.5]} 56. g4 {[%clk 0:00:02.6]} 56... Nf2 {[%clk
0:00:06.8]} 57. Kh5 {[%clk 0:00:02.6]} 57... Nxg4 {[%clk 0:00:07.2]} 58. Kxg4
{[%clk 0:00:02.9]} 58... Kxa5 {[%clk 0:00:07.8]} 59. Kxf4 {[%clk 0:00:03.6]}
59... Kb5 {[%clk 0:00:08.4]} 60. Kg4 {[%clk 0:00:04.3]} 60... Kc5 {[%clk
0:00:09.1]} 61. Kh5 {[%clk 0:00:05.2]} 61... Kc4 {[%clk 0:00:09.7]} 62. Kxh6
{[%clk 0:00:06.1]} 1/2-1/2

[Event "Early-Titled-Tuesday-Blitz-January-16-2024"]
[Site "Chess.com"]
[Date "2024.01.16"]
[Round "8"]
[White "LyonBeast"]
[Black "Firouzja2003"]
[Result "1-0"]
[WhiteElo "3158"]
[BlackElo "3166"]
[TimeControl "180+1"]
[EndTime "9:33:45 PST"]
[Termination "LyonBeast won on time"]

1. e4 {[%clk 0:03:00.9]} 1... e5 {[%clk 0:03:00.1]} 2. Nf3 {[%clk 0:03:00.5]}
2... Nc6 {[%clk 0:03:00.8]} 3. Bb5 {[%clk 0:03:00.2]} 3... Nf6 {[%clk
0:03:01.2]} 4. O-O {[%clk 0:02:55]} 4... Nxe4 {[%clk 0:03:01.4]} 5. d4 {[%clk
0:02:55.8]} 5... Nd6 {[%clk 0:03:01.8]} 6. Bxc6 {[%clk 0:02:56.4]} 6... dxc6
{[%clk 0:03:02.2]} 7. dxe5 {[%clk 0:02:57.2]} 7... Nf5 {[%clk 0:03:02.7]} 8.
Qxd8+ {[%clk 0:02:57.8]} 8... Kxd8 {[%clk 0:03:03.3]} 9. Nc3 {[%clk 0:02:58.5]}
9... Bd7 {[%clk 0:02:54.7]} 10. Bf4 {[%clk 0:02:57.2]} 10... h6 {[%clk
0:02:46.9]} 11. h3 {[%clk 0:02:51.8]} 11... Kc8 {[%clk 0:02:43.8]} 12. Rad1
{[%clk 0:02:48.7]} 12... Be7 {[%clk 0:02:31.7]} 13. Rfe1 {[%clk 0:02:32.6]}
13... b6 {[%clk 0:02:21.4]} 14. Ne2 {[%clk 0:02:01.5]} 14... c5 {[%clk
0:01:59.1]} 15. g4 {[%clk 0:02:01.2]} 15... Nh4 {[%clk 0:01:56.4]} 16. Nxh4
{[%clk 0:02:01.4]} 16... Bxh4 {[%clk 0:01:57.3]} 17. Bg3 {[%clk 0:02:02.2]}
17... Bd8 {[%clk 0:01:45.3]} 18. Nf4 {[%clk 0:02:02.1]} 18... Bc6 {[%clk
0:00:53.8]} 19. e6 {[%clk 0:02:00]} 19... fxe6 {[%clk 0:00:54]} 20. Nxe6 {[%clk
0:02:00.6]} 20... Kb7 {[%clk 0:00:54.5]} 21. Nxg7 {[%clk 0:01:59]} 21... Bf6
{[%clk 0:00:54.8]} 22. Nf5 {[%clk 0:01:51.9]} 22... Bxb2 {[%clk 0:00:44.9]} 23.
Re7 {[%clk 0:01:51.5]} 23... Ka6 {[%clk 0:00:41.3]} 24. Rxc7 {[%clk 0:01:50.8]}
24... Ba4 {[%clk 0:00:41.4]} 25. Rb1 {[%clk 0:01:41.2]} 25... Bf6 {[%clk
0:00:30]} 26. Ne3 {[%clk 0:01:40.4]} 26... Bd4 {[%clk 0:00:26.7]} 27. c4 {[%clk
0:01:35.8]} 27... Bxe3 {[%clk 0:00:24]} 28. fxe3 {[%clk 0:01:36.7]} 28... Rae8
{[%clk 0:00:23.5]} 29. Bf4 {[%clk 0:01:36.3]} 29... Re4 {[%clk 0:00:14.7]} 30.
Rc1 {[%clk 0:01:36.5]} 30... Re6 {[%clk 0:00:13.9]} 31. Rc3 {[%clk 0:01:33.7]}
31... Ka5 {[%clk 0:00:09.7]} 32. Rxa7+ {[%clk 0:01:32.5]} 32... Kb4 {[%clk
0:00:10.2]} 33. Rc1 {[%clk 0:01:33.2]} 33... Bc6 {[%clk 0:00:04.7]} 34. Ra6
{[%clk 0:01:24.8]} 34... Be4 {[%clk 0:00:04.2]} 35. Bc7 {[%clk 0:01:15.1]} 35...
Rc8 {[%clk 0:00:02.7]} 36. Bxb6 {[%clk 0:01:13]} 36... Rcc6 {[%clk 0:00:02.3]}
37. Ba5+ {[%clk 0:01:05.2]} 37... Ka3 {[%clk 0:00:02.9]} 38. Ra7 {[%clk
0:00:56.6]} 38... Ra6 {[%clk 0:00:03.1]} 39. Rxa6 {[%clk 0:00:56.6]} 39... Rxa6
{[%clk 0:00:03.7]} 40. Bc3 {[%clk 0:00:57.4]} 40... Re6 {[%clk 0:00:04.1]} 41.
Kf2 {[%clk 0:00:47.1]} 41... Kxa2 {[%clk 0:00:04.1]} 42. Bg7 {[%clk 0:00:39.1]}
42... Kb3 {[%clk 0:00:04.2]} 43. Kg3 {[%clk 0:00:36.4]} 43... Bc2 {[%clk
0:00:03.8]} 44. Kh4 {[%clk 0:00:32.1]} 44... Rg6 {[%clk 0:00:02.1]} 45. Bf8
{[%clk 0:00:31.3]} 45... Rc6 {[%clk 0:00:02.7]} 46. Kh5 {[%clk 0:00:29]} 46...
Kb2 {[%clk 0:00:03.1]} 47. Rf1 {[%clk 0:00:26.6]} 47... Bg6+ {[%clk 0:00:02.8]}
48. Kh4 {[%clk 0:00:26.1]} 48... Bd3 {[%clk 0:00:03.1]} 49. Bg7+ {[%clk
0:00:23.3]} 49... Kb3 {[%clk 0:00:03]} 50. Rc1 {[%clk 0:00:23]} 50... Bxc4
{[%clk 0:00:03.4]} 51. e4 {[%clk 0:00:18.8]} 51... Bf7 {[%clk 0:00:02.6]} 52.
Rc3+ {[%clk 0:00:18.5]} 52... Kb4 {[%clk 0:00:02.6]} 53. Rf3 {[%clk 0:00:19]}
53... Bg6 {[%clk 0:00:02.7]} 54. Bxh6 {[%clk 0:00:16.7]} 54... Bxe4 {[%clk
0:00:02.7]} 55. Bd2+ {[%clk 0:00:17.5]} 55... Kc4 {[%clk 0:00:02.7]} 56. Ra3
{[%clk 0:00:15.3]} 56... Kd4 {[%clk 0:00:02]} 57. Kg3 {[%clk 0:00:14]} 57... c4
{[%clk 0:00:02.2]} 58. Bc3+ {[%clk 0:00:14.5]} 58... Kd5 {[%clk 0:00:02.4]} 59.
h4 {[%clk 0:00:14.9]} 59... Bd3 {[%clk 0:00:02.2]} 60. h5 {[%clk 0:00:15]} 60...
Ke4 {[%clk 0:00:02.8]} 61. Ra5 {[%clk 0:00:13.8]} 61... Ke3 {[%clk 0:00:02.8]}
62. Re5+ {[%clk 0:00:13.6]} 62... Be4 {[%clk 0:00:02.7]} 63. g5 {[%clk
0:00:13.6]} 63... Kd3 {[%clk 0:00:03.6]} 64. Be1 {[%clk 0:00:13.7]} 64... c3
{[%clk 0:00:03.9]} 65. Bxc3 {[%clk 0:00:13.9]} 65... Rxc3 {[%clk 0:00:04.7]} 66.
Kf4 {[%clk 0:00:14.6]} 66... Rc4 {[%clk 0:00:03.8]} 67. h6 {[%clk 0:00:14.2]}
67... Bg6+ {[%clk 0:00:03.8]} 68. Kf3 {[%clk 0:00:13.7]} 68... Bh5+ {[%clk
0:00:03.8]} 69. Kg3 {[%clk 0:00:13.5]} 69... Rc7 {[%clk 0:00:02]} 70. Re6 {[%clk
0:00:11.6]} 1-0

[Event "Early-Titled-Tuesday-Blitz-January-16-2024"]
[Site "Chess.com"]
[Date "2024.01.16"]
[Round "8"]
[White "GMT4114"]
[Black "Darkbluelord"]
[Result "1-0"]
[WhiteElo "1996"]
[BlackElo "2164"]
[TimeControl "180+1"]
[EndTime "9:33:46 PST"]
[Termination "GMT4114 won by resignation"]

1. e4 {[%clk 0:03:00.9]} 1... c5 {[%clk 0:02:59.7]} 2. Nc3 {[%clk 0:03:00.6]}
2... d6 {[%clk 0:02:58.2]} 3. d4 {[%clk 0:03:00.2]} 3... cxd4 {[%clk 0:02:57.6]}
4. Qxd4 {[%clk 0:03:01.1]} 4... Nf6 {[%clk 0:02:57.4]} 5. b3 {[%clk 0:03:00.8]}
5... Nc6 {[%clk 0:02:55.4]} 6. Qd2 {[%clk 0:03:01]} 6... g6 {[%clk 0:02:54]} 7.
Bb2 {[%clk 0:03:01.9]} 7... Bg7 {[%clk 0:02:54.4]} 8. O-O-O {[%clk 0:03:02]}
8... O-O {[%clk 0:02:53]} 9. f3 {[%clk 0:03:02]} 9... a5 {[%clk 0:02:49.9]} 10.
Bb5 {[%clk 0:02:53.6]} 10... Bd7 {[%clk 0:02:47.9]} 11. Nge2 {[%clk 0:02:26.4]}
11... Qb6 {[%clk 0:02:35.2]} 12. a4 {[%clk 0:02:09.8]} 12... Rfd8 {[%clk
0:02:21]} 13. Nd5 {[%clk 0:02:02.4]} 13... Nxd5 {[%clk 0:02:13.7]} 14. Bxg7
{[%clk 0:02:03.3]} 14... Kxg7 {[%clk 0:02:09.1]} 15. Qxd5 {[%clk 0:02:00.9]}
15... Be6 {[%clk 0:02:02.1]} 16. Qd2 {[%clk 0:01:54.9]} 16... Rac8 {[%clk
0:02:02]} 17. Kb1 {[%clk 0:01:37.1]} 17... Nb4 {[%clk 0:01:58.2]} 18. Qd4+
{[%clk 0:01:23.3]} 18... Qxd4 {[%clk 0:01:56.5]} 19. Nxd4 {[%clk 0:01:24.2]}
19... Bd7 {[%clk 0:01:56.2]} 20. Bxd7 {[%clk 0:01:08.2]} 20... Rxd7 {[%clk
0:01:57.1]} 21. Rd2 {[%clk 0:01:08.8]} 21... Rdc7 {[%clk 0:01:43.4]} 22. c4
{[%clk 0:00:54.7]} 22... Nc6 {[%clk 0:01:36.9]} 23. Nb5 {[%clk 0:00:49.9]} 23...
Rd7 {[%clk 0:01:34]} 24. h4 {[%clk 0:00:50.8]} 24... Ne5 {[%clk 0:01:25.7]} 25.
Nc3 {[%clk 0:00:44.3]} 25... h5 {[%clk 0:01:07.6]} 26. Rhd1 {[%clk 0:00:42.3]}
26... Rdd8 {[%clk 0:00:36]} 27. Nd5 {[%clk 0:00:40.5]} 27... Kf8 {[%clk
0:00:33.5]} 28. Kb2 {[%clk 0:00:40.3]} 28... Nd7 {[%clk 0:00:29.9]} 29. Kc3
{[%clk 0:00:35.7]} 29... Rc6 {[%clk 0:00:29.5]} 30. Ne3 {[%clk 0:00:26.8]} 30...
Nc5 {[%clk 0:00:27.6]} 31. Nc2 {[%clk 0:00:20.1]} 31... Rdc8 {[%clk 0:00:25]}
32. Nd4 {[%clk 0:00:19.8]} 32... R6c7 {[%clk 0:00:23]} 33. Nb5 {[%clk
0:00:19.9]} 33... Rc6 {[%clk 0:00:23.4]} 34. Na7 {[%clk 0:00:19.6]} 34... R8c7
{[%clk 0:00:20.5]} 35. Nxc6 {[%clk 0:00:19.3]} 35... Rxc6 {[%clk 0:00:21.4]} 36.
g3 {[%clk 0:00:19.6]} 36... Rb6 {[%clk 0:00:21.7]} 37. Rb2 {[%clk 0:00:15.2]}
37... Na6 {[%clk 0:00:20.2]} 38. g4 {[%clk 0:00:14.1]} 38... Nb4 {[%clk
0:00:19.7]} 39. gxh5 {[%clk 0:00:12.7]} 39... gxh5 {[%clk 0:00:20.6]} 40. Rg1
{[%clk 0:00:11.9]} 40... e6 {[%clk 0:00:18.5]} 41. Rg5 {[%clk 0:00:11.7]} 41...
d5 {[%clk 0:00:18.9]} 42. exd5 {[%clk 0:00:11]} 42... exd5 {[%clk 0:00:19.1]}
43. Rxh5 {[%clk 0:00:11]} 43... dxc4 {[%clk 0:00:17.5]} 44. Kxc4 {[%clk
0:00:09.9]} 44... Rc6+ {[%clk 0:00:16.8]} 45. Rc5 {[%clk 0:00:09.9]} 45... Rxc5+
{[%clk 0:00:15.8]} 46. Kxc5 {[%clk 0:00:06.1]} 46... Nd3+ {[%clk 0:00:16.7]} 47.
Kb6 {[%clk 0:00:06.7]} 47... Nxb2 {[%clk 0:00:17.6]} 48. Kxb7 {[%clk 0:00:07.5]}
48... Nd3 {[%clk 0:00:14.5]} 49. Kb6 {[%clk 0:00:07.8]} 49... Nc1 {[%clk
0:00:13.6]} 50. Kxa5 {[%clk 0:00:07.1]} 50... Nxb3+ {[%clk 0:00:13.9]} 51. Kb4
{[%clk 0:00:07.6]} 51... Nd4 {[%clk 0:00:13.9]} 52. a5 {[%clk 0:00:08.2]} 52...
Ke7 {[%clk 0:00:12.4]} 53. f4 {[%clk 0:00:07.7]} 53... Kd7 {[%clk 0:00:12]} 54.
h5 {[%clk 0:00:06.5]} 54... Nf5 {[%clk 0:00:11]} 55. Kb5 {[%clk 0:00:06.6]}
55... Kc7 {[%clk 0:00:11.5]} 56. Kc5 {[%clk 0:00:05.1]} 56... Nh6 {[%clk
0:00:10.8]} 57. Kd5 {[%clk 0:00:04.4]} 57... Kb7 {[%clk 0:00:11]} 58. Kd6 {[%clk
0:00:04.3]} 58... Ka6 {[%clk 0:00:11.9]} 59. Ke5 {[%clk 0:00:04.1]} 59... Kxa5
{[%clk 0:00:11.9]} 60. Kf6 {[%clk 0:00:04.7]} 60... Kb6 {[%clk 0:00:11.2]} 61.
Kg5 {[%clk 0:00:04.9]} 61... Ng8 {[%clk 0:00:10.7]} 62. h6 {[%clk 0:00:04.8]}
62... Nxh6 {[%clk 0:00:10]} 63. Kxh6 {[%clk 0:00:04.8]} 63... Kc6 {[%clk
0:00:10.9]} 64. Kg7 {[%clk 0:00:05.6]} 64... Kd6 {[%clk 0:00:11.8]} 65. Kxf7
{[%clk 0:00:06.2]} 65... Kd5 {[%clk 0:00:11.7]} 66. Kg6 {[%clk 0:00:06.6]} 66...
Ke6 {[%clk 0:00:11.6]} 67. f5+ {[%clk 0:00:07.5]} 67... Ke7 {[%clk 0:00:12.3]}
68. Kg7 {[%clk 0:00:07]} 68... Kd6 {[%clk 0:00:12.9]} 69. f6 {[%clk 0:00:07.6]}
69... Ke5 {[%clk 0:00:13.8]} 70. f7 {[%clk 0:00:08.1]} 70... Kf4 {[%clk
0:00:14.7]} 71. f8=Q+ {[%clk 0:00:08.3]} 71... Kg4 {[%clk 0:00:15.6]} 72. Qf7
{[%clk 0:00:08.4]} 1-0

[Event "Early-Titled-Tuesday-Blitz-January-16-2024"]
[Site "Chess.com"]
[Date "2024.01.16"]
[Round "8"]
[White "kritipatel"]
[Black "KorolDimitriy75"]
[Result "1/2-1/2"]
[WhiteElo "2188"]
[BlackElo "2345"]
[TimeControl "180+1"]
[EndTime "9:33:50 PST"]
[Termination "Game drawn by stalemate"]

1. e4 {[%clk 0:03:00.2]} 1... c5 {[%clk 0:03:00.2]} 2. c3 {[%clk 0:02:56.4]}
2... d5 {[%clk 0:03:00]} 3. exd5 {[%clk 0:02:56.2]} 3... Qxd5 {[%clk 0:03:00.9]}
4. d4 {[%clk 0:02:56.9]} 4... cxd4 {[%clk 0:03:01.8]} 5. cxd4 {[%clk 0:02:57.3]}
5... Nc6 {[%clk 0:03:02.1]} 6. Nf3 {[%clk 0:02:57.7]} 6... e5 {[%clk 0:03:02.3]}
7. Nc3 {[%clk 0:02:56.7]} 7... Bb4 {[%clk 0:03:02]} 8. Bd2 {[%clk 0:02:57.2]}
8... Bxc3 {[%clk 0:03:02.2]} 9. Bxc3 {[%clk 0:02:57.7]} 9... e4 {[%clk
0:03:02.4]} 10. Ne5 {[%clk 0:02:56.9]} 10... Nxe5 {[%clk 0:03:02.5]} 11. dxe5
{[%clk 0:02:57.8]} 11... Ne7 {[%clk 0:03:03.1]} 12. Be2 {[%clk 0:02:50]} 12...
O-O {[%clk 0:03:00.9]} 13. O-O {[%clk 0:02:47.8]} 13... Re8 {[%clk 0:02:45.4]}
14. Qc2 {[%clk 0:02:26.8]} 14... Bf5 {[%clk 0:02:30]} 15. Rfd1 {[%clk
0:02:21.5]} 15... Qc5 {[%clk 0:01:53.2]} 16. Qb3 {[%clk 0:02:13.8]} 16... Qc7
{[%clk 0:00:51.8]} 17. Rac1 {[%clk 0:02:09.5]} 17... Nc6 {[%clk 0:00:50.6]} 18.
Bb5 {[%clk 0:01:49.1]} 18... Rad8 {[%clk 0:00:47.5]} 19. Bxc6 {[%clk 0:01:39.7]}
19... Qxc6 {[%clk 0:00:29.3]} 20. Ba5 {[%clk 0:01:14.2]} 20... Rxd1+ {[%clk
0:00:28.6]} 21. Qxd1 {[%clk 0:01:13.4]} 21... Qb5 {[%clk 0:00:21.9]} 22. Bc3
{[%clk 0:01:08.6]} 22... h6 {[%clk 0:00:19.3]} 23. h3 {[%clk 0:01:07.7]} 23...
a6 {[%clk 0:00:18.7]} 24. Qd4 {[%clk 0:01:06.8]} 24... Re6 {[%clk 0:00:16.1]}
25. a4 {[%clk 0:01:03.8]} 25... Qb3 {[%clk 0:00:15.3]} 26. Qd8+ {[%clk
0:00:56.4]} 26... Kh7 {[%clk 0:00:15.3]} 27. Qd4 {[%clk 0:00:53.7]} 27... Rg6
{[%clk 0:00:15]} 28. Kh2 {[%clk 0:00:50.2]} 28... Qa2 {[%clk 0:00:13.3]} 29. a5
{[%clk 0:00:42.6]} 29... Qe6 {[%clk 0:00:13.1]} 30. Qe3 {[%clk 0:00:38.9]} 30...
Rg5 {[%clk 0:00:12.8]} 31. Rg1 {[%clk 0:00:32.3]} 31... Qg6 {[%clk 0:00:12.4]}
32. Qd4 {[%clk 0:00:23.7]} 32... Be6 {[%clk 0:00:12.1]} 33. Bd2 {[%clk
0:00:22.8]} 33... Rf5 {[%clk 0:00:11.9]} 34. b4 {[%clk 0:00:22.1]} 34... Qh5
{[%clk 0:00:11]} 35. Be3 {[%clk 0:00:19.8]} 35... Qh4 {[%clk 0:00:10.5]} 36. f3
{[%clk 0:00:18.9]} 36... Rh5 {[%clk 0:00:09.3]} 37. Qxe4+ {[%clk 0:00:17.4]}
37... Qxe4 {[%clk 0:00:09.2]} 38. fxe4 {[%clk 0:00:17.8]} 38... Rxe5 {[%clk
0:00:09.9]} 39. Bc5 {[%clk 0:00:16]} 39... Rxe4 {[%clk 0:00:09.8]} 40. Rd1
{[%clk 0:00:16]} 40... Re2 {[%clk 0:00:08.9]} 41. Rg1 {[%clk 0:00:14.7]} 41...
Bd5 {[%clk 0:00:08.8]} 42. Kg3 {[%clk 0:00:15.2]} 42... Bc6 {[%clk 0:00:08.9]}
43. Kh2 {[%clk 0:00:15.7]} 43... Kg6 {[%clk 0:00:09.1]} 44. Kg3 {[%clk
0:00:16.3]} 44... h5 {[%clk 0:00:09.6]} 45. Kh2 {[%clk 0:00:16.9]} 45... f6
{[%clk 0:00:09.7]} 46. Bd6 {[%clk 0:00:17.3]} 46... Kf7 {[%clk 0:00:09.6]} 47.
Bc5 {[%clk 0:00:17.9]} 47... h4 {[%clk 0:00:09.7]} 48. Bd6 {[%clk 0:00:17.2]}
48... g5 {[%clk 0:00:09.8]} 49. Bc5 {[%clk 0:00:17.6]} 49... Kg6 {[%clk
0:00:10.1]} 50. Bd6 {[%clk 0:00:18]} 50... f5 {[%clk 0:00:10.5]} 51. Bc5 {[%clk
0:00:18.1]} 51... f4 {[%clk 0:00:10.9]} 52. Bd6 {[%clk 0:00:18.3]} 52... f3
{[%clk 0:00:10.7]} 53. Kh1 {[%clk 0:00:16.7]} 53... Rxg2 {[%clk 0:00:09]} 54.
Rxg2 {[%clk 0:00:16.6]} 54... fxg2+ {[%clk 0:00:09.9]} 55. Kg1 {[%clk
0:00:17.3]} 55... Kf5 {[%clk 0:00:09.7]} 56. Bc5 {[%clk 0:00:17.8]} 56... Kf4
{[%clk 0:00:09.5]} 57. Bf2 {[%clk 0:00:18.1]} 57... Kf3 {[%clk 0:00:09.6]} 58.
Bc5 {[%clk 0:00:18.7]} 58... Kg3 {[%clk 0:00:09.3]} 59. Bd6+ {[%clk 0:00:17.6]}
59... Kxh3 {[%clk 0:00:09.3]} 60. Be5 {[%clk 0:00:17.9]} 60... g4 {[%clk
0:00:09.6]} 61. Bd6 {[%clk 0:00:18.1]} 61... g3 {[%clk 0:00:08.9]} 62. Be5
{[%clk 0:00:18.7]} 62... Kg4 {[%clk 0:00:08.9]} 63. b5 {[%clk 0:00:18.3]} 63...
Bf3 {[%clk 0:00:07]} 64. b6 {[%clk 0:00:18]} 64... h3 {[%clk 0:00:03.9]} 65.
Bxg3 {[%clk 0:00:18.2]} 65... Kxg3 {[%clk 0:00:01.7]} 1/2-1/2